[Event "Titled Tuesday Blitz April 12 Early 2022"]
[White "Rohith Krishna S"]
[Black "Maksimenko, Viktor"]
[WhiteFideId "46617051"]
[BlackFideId "13710478"]
[WhiteElo "2117"]
[BlackElo "2269"]
[Result "1-0"]
[Round "10"]
[TimeControl "180+1"]
[Date "2022.04.12"]
[WhiteClock "0:01:00"]
[BlackClock "0:00:09"]

1. e4 {[%clk 0:03:00]}  c6 {[%clk 0:02:59]} 2. d4 {[%clk 0:03:00]}  d5 {[%clk 0:03:00]} 3. e5 {[%clk 0:02:59]}  Bf5 {[%clk 0:02:59]} 4. c3 {[%clk 0:03:00]}  e6 {[%clk 0:02:59]} 5. Nf3 {[%clk 0:03:00]}  h6 {[%clk 0:02:56]} 6. Bd3 {[%clk 0:03:00]}  Ne7 {[%clk 0:02:55]} 7. O-O {[%clk 0:03:00]}  Nd7 {[%clk 0:02:54]} 8. h3 {[%clk 0:02:58]}  g5 {[%clk 0:02:54]} 9. Ne1 {[%clk 0:02:55]}  Bxd3 {[%clk 0:02:49]} 10. Nxd3 {[%clk 0:02:55]}  Nf5 {[%clk 0:02:44]} 11. Be3 {[%clk 0:02:53]}  h5 {[%clk 0:02:42]} 12. Nd2 {[%clk 0:02:52]}  Qe7 {[%clk 0:02:30]} 13. Qe2 {[%clk 0:02:49]}  O-O-O {[%clk 0:02:28]} 14. a4 {[%clk 0:02:44]}  Bh6 {[%clk 0:02:28]} 15. a5 {[%clk 0:02:44]}  a6 {[%clk 0:02:21]} 16. b4 {[%clk 0:02:45]}  Rdg8 {[%clk 0:02:19]} 17. Nc5 {[%clk 0:02:45]}  Nxc5 {[%clk 0:02:18]} 18. bxc5 {[%clk 0:02:46]}  g4 {[%clk 0:02:14]} 19. Bxh6 {[%clk 0:02:40]}  Rxh6 {[%clk 0:02:13]} 20. Qd3 {[%clk 0:02:40]}  Qh4 {[%clk 0:02:00]} 21. Kh1 {[%clk 0:02:36]}  Rhg6 {[%clk 0:01:58]} 22. Rab1 {[%clk 0:02:09]}  gxh3 {[%clk 0:01:46]} 23. Qxh3 {[%clk 0:02:10]}  Qe7 {[%clk 0:01:46]} 24. Nf3 {[%clk 0:01:55]}  h4 {[%clk 0:01:38]} 25. Rb3 {[%clk 0:01:50]}  Rd8 {[%clk 0:01:28]} 26. Rfb1 {[%clk 0:01:49]}  Rd7 {[%clk 0:01:29]} 27. Ne1 {[%clk 0:01:45]}  Qg5 {[%clk 0:01:21]} 28. Nd3 {[%clk 0:01:34]}  Ng3+ {[%clk 0:00:48]} 29. Kh2 {[%clk 0:01:34]}  Nf5 {[%clk 0:00:46]} 30. Qf3 {[%clk 0:01:30]}  Kb8 {[%clk 0:00:38]} 31. Nf4 {[%clk 0:01:29]}  Rg8 {[%clk 0:00:38]} 32. Nh5 {[%clk 0:01:26]}  h3 {[%clk 0:00:31]} 33. g3 {[%clk 0:01:16]}  Rg6 {[%clk 0:00:27]} 34. Nf6 {[%clk 0:01:16]}  Rxf6 {[%clk 0:00:28]} 35. exf6 {[%clk 0:01:16]}  Qxf6 {[%clk 0:00:29]} 36. g4 {[%clk 0:01:13]}  Qh4 {[%clk 0:00:18]} 37. gxf5 {[%clk 0:01:12]}  Ka7 {[%clk 0:00:17]} 38. Qg3 {[%clk 0:01:07]}  Qh6 {[%clk 0:00:15]} 39. Re1 {[%clk 0:01:04]}  e5 {[%clk 0:00:13]} 40. Rxe5 {[%clk 0:01:03]}  Rd8 {[%clk 0:00:11]} 41. Re7 {[%clk 0:01:02]}  Rb8 {[%clk 0:00:10]} 42. Qxb8+ {[%clk 0:00:57]}  Kxb8 {[%clk 0:00:09]} 43. Rexb7+ {[%clk 0:00:58]}  Kc8 {[%clk 0:00:09]} 44. Rb8+ {[%clk 0:00:59]}  Kd7 {[%clk 0:00:09]} 45. R3b7# {[%clk 0:01:00]} 1-0


[Site "https://www.chess.com"]

[Event "Titled Tuesday Blitz April 12 Early 2022"]
[White "Sadilek, Peter"]
[Black "Belenkaya, Dina"]
[WhiteFideId "1616439"]
[BlackFideId "24142654"]
[WhiteElo "2145"]
[BlackElo "2196"]
[Result "1-0"]
[Round "10"]
[TimeControl "180+1"]
[Date "2022.04.13"]
[WhiteClock "0:00:56"]
[BlackClock "0:00:07"]

1. Nf3 {[%clk 0:02:43]}  d5 {[%clk 0:00:16]} 2. d4 {[%clk 0:02:05]}  c6 {[%clk 0:00:17]} 3. c4 {[%clk 0:02:05]}  Nf6 {[%clk 0:00:16]} 4. Nc3 {[%clk 0:02:06]}  e6 {[%clk 0:00:16]} 5. g3 {[%clk 0:02:06]}  Be7 {[%clk 0:00:17]} 6. Bg2 {[%clk 0:02:07]}  O-O {[%clk 0:00:17]} 7. O-O {[%clk 0:02:08]}  dxc4 {[%clk 0:00:17]} 8. e4 {[%clk 0:02:07]}  Nbd7 {[%clk 0:00:17]} 9. Bf4 {[%clk 0:02:05]}  b5 {[%clk 0:00:16]} 10. d5 {[%clk 0:02:05]}  cxd5 {[%clk 0:00:14]} 11. exd5 {[%clk 0:02:06]}  exd5 {[%clk 0:00:13]} 12. Nxd5 {[%clk 0:02:07]}  Nxd5 {[%clk 0:00:13]} 13. Qxd5 {[%clk 0:02:08]}  Nb6 {[%clk 0:00:13]} 14. Qxb5 {[%clk 0:02:07]}  Be6 {[%clk 0:00:12]} 15. Rfd1 {[%clk 0:02:01]}  Qe8 {[%clk 0:00:12]} 16. Qh5 {[%clk 0:02:00]}  Rc8 {[%clk 0:00:11]} 17. Nd4 {[%clk 0:01:48]}  Rc5 {[%clk 0:00:10]} 18. Qe2 {[%clk 0:01:42]}  Bd5 {[%clk 0:00:10]} 19. Nf5 {[%clk 0:01:39]}  Bf6 {[%clk 0:00:08]} 20. Qxe8 {[%clk 0:01:13]}  Rxe8 {[%clk 0:00:09]} 21. Be3 {[%clk 0:01:06]}  Ra5 {[%clk 0:00:08]} 22. Bxb6 {[%clk 0:01:04]}  axb6 {[%clk 0:00:08]} 23. Bxd5 {[%clk 0:01:05]}  Re5 {[%clk 0:00:07]} 24. Ne3 {[%clk 0:01:03]}  Bg5 {[%clk 0:00:06]} 25. Nxc4 {[%clk 0:00:56]}  Raxd5 {[%clk 0:00:06]} 26. Nxe5 {[%clk 0:00:56]}  Rxe5 {[%clk 0:00:07]} 27. f4 {[%clk 0:00:56]}  Re2 {[%clk 0:00:07]} 28. fxg5 {[%clk 0:00:56]} 1-0


[Site "https://www.chess.com"]

[Event "Titled Tuesday Blitz April 12 Early 2022"]
[White "Samaganova, Aleksandra"]
[Black "Butti, Enrique"]
[WhiteFideId "13800221"]
[BlackFideId "3700470"]
[WhiteElo "1859"]
[BlackElo "2080"]
[Result "1-0"]
[Round "10"]
[TimeControl "180+1"]
[Date "2022.04.13"]
[WhiteClock "0:00:02"]
[BlackClock "0:00:02"]

1. c4 {[%clk 0:03:00]}  e5 {[%clk 0:02:58]} 2. Nc3 {[%clk 0:03:00]}  Nc6 {[%clk 0:02:58]} 3. g3 {[%clk 0:02:59]}  g6 {[%clk 0:02:57]} 4. Bg2 {[%clk 0:02:59]}  Bg7 {[%clk 0:02:56]} 5. e3 {[%clk 0:02:59]}  d6 {[%clk 0:02:55]} 6. Nge2 {[%clk 0:02:59]}  h5 {[%clk 0:02:54]} 7. h3 {[%clk 0:02:58]}  f5 {[%clk 0:02:53]} 8. d4 {[%clk 0:02:52]}  h4 {[%clk 0:02:49]} 9. b3 {[%clk 0:02:35]}  hxg3 {[%clk 0:02:46]} 10. fxg3 {[%clk 0:02:30]}  g5 {[%clk 0:02:45]} 11. Bb2 {[%clk 0:02:15]}  f4 {[%clk 0:02:42]} 12. d5 {[%clk 0:02:00]}  Nce7 {[%clk 0:02:22]} 13. exf4 {[%clk 0:01:43]}  exf4 {[%clk 0:02:17]} 14. Qd2 {[%clk 0:01:34]}  Nf5 {[%clk 0:02:07]} 15. gxf4 {[%clk 0:01:11]}  gxf4 {[%clk 0:02:00]} 16. O-O-O {[%clk 0:00:59]}  Ne3 {[%clk 0:01:50]} 17. Rdg1 {[%clk 0:00:49]}  Nxg2 {[%clk 0:01:42]} 18. Rxg2 {[%clk 0:00:47]}  Be5 {[%clk 0:01:34]} 19. Qd3 {[%clk 0:00:40]}  Ne7 {[%clk 0:01:24]} 20. Rhg1 {[%clk 0:00:38]}  Bf5 {[%clk 0:01:08]} 21. Qd2 {[%clk 0:00:32]}  Bxh3 {[%clk 0:00:55]} 22. Rf2 {[%clk 0:00:25]}  Qd7 {[%clk 0:00:50]} 23. Nxf4 {[%clk 0:00:20]}  O-O-O {[%clk 0:00:47]} 24. Kb1 {[%clk 0:00:15]}  Nf5 {[%clk 0:00:40]} 25. Ne6 {[%clk 0:00:14]}  Rdg8 {[%clk 0:00:35]} 26. Ne4 {[%clk 0:00:10]}  Rxg1+ {[%clk 0:00:28]} 27. Kc2 {[%clk 0:00:08]}  Qh7 {[%clk 0:00:18]} 28. N6g5 {[%clk 0:00:05]}  Qg6 {[%clk 0:00:14]} 29. Nxh3 {[%clk 0:00:04]}  Rxh3 {[%clk 0:00:12]} 30. Bxe5 {[%clk 0:00:05]}  dxe5 {[%clk 0:00:11]} 31. d6 {[%clk 0:00:05]}  Nd4+ {[%clk 0:00:09]} 32. Kb2 {[%clk 0:00:04]}  Qxe4 {[%clk 0:00:07]} 33. Rf8+ {[%clk 0:00:03]}  Kd7 {[%clk 0:00:06]} 34. dxc7 {[%clk 0:00:03]}  Kxc7 {[%clk 0:00:05]} 35. Qa5+ {[%clk 0:00:03]}  Kd7 {[%clk 0:00:02]} 36. Qd8+ {[%clk 0:00:02]}  Ke6 {[%clk 0:00:02]} 37. Rf6# {[%clk 0:00:02]} 1-0


[Site "https://www.chess.com"]

[Event "Titled Tuesday Blitz April 12 Early 2022"]
[White "Samant Aditya S"]
[Black "Estrada Nieto, Julian"]
[WhiteFideId "35080580"]
[BlackFideId "5101018"]
[WhiteElo "1916"]
[BlackElo "2252"]
[Result "1/2-1/2"]
[Round "10"]
[TimeControl "180+1"]
[Date "2022.04.13"]
[WhiteClock "0:00:09"]
[BlackClock "0:00:07"]

1. d4 {[%clk 0:03:00]}  d5 {[%clk 0:02:58]} 2. c4 {[%clk 0:02:55]}  dxc4 {[%clk 0:02:59]} 3. e3 {[%clk 0:02:51]}  Nf6 {[%clk 0:02:59]} 4. Bxc4 {[%clk 0:02:51]}  e6 {[%clk 0:03:00]} 5. Nf3 {[%clk 0:02:50]}  c5 {[%clk 0:03:01]} 6. Nc3 {[%clk 0:02:50]}  a6 {[%clk 0:03:01]} 7. a4 {[%clk 0:02:49]}  Nc6 {[%clk 0:03:01]} 8. O-O {[%clk 0:02:47]}  Be7 {[%clk 0:03:02]} 9. Qe2 {[%clk 0:02:20]}  cxd4 {[%clk 0:03:01]} 10. exd4 {[%clk 0:02:20]}  Nxd4 {[%clk 0:02:59]} 11. Nxd4 {[%clk 0:02:21]}  Qxd4 {[%clk 0:02:59]} 12. Be3 {[%clk 0:02:11]}  Qh4 {[%clk 0:02:54]} 13. Rad1 {[%clk 0:01:56]}  Bd7 {[%clk 0:02:50]} 14. Rd4 {[%clk 0:01:54]}  Qh5 {[%clk 0:02:45]} 15. Qxh5 {[%clk 0:01:33]}  Nxh5 {[%clk 0:02:45]} 16. Ne4 {[%clk 0:01:33]}  Nf6 {[%clk 0:02:35]} 17. Nd6+ {[%clk 0:01:29]}  Bxd6 {[%clk 0:02:35]} 18. Rxd6 {[%clk 0:01:30]}  Bc6 {[%clk 0:02:30]} 19. b3 {[%clk 0:01:25]}  O-O {[%clk 0:02:28]} 20. Rfd1 {[%clk 0:01:25]}  Rac8 {[%clk 0:02:10]} 21. f3 {[%clk 0:01:16]}  Bd5 {[%clk 0:02:09]} 22. Rc1 {[%clk 0:01:10]}  Bxc4 {[%clk 0:01:57]} 23. bxc4 {[%clk 0:00:53]}  Rfd8 {[%clk 0:01:54]} 24. Rb6 {[%clk 0:00:28]}  Rd7 {[%clk 0:01:48]} 25. Kf2 {[%clk 0:00:15]}  Kf8 {[%clk 0:01:45]} 26. a5 {[%clk 0:00:15]}  Ke8 {[%clk 0:01:42]} 27. g4 {[%clk 0:00:14]}  h6 {[%clk 0:01:41]} 28. h4 {[%clk 0:00:14]}  Rdc7 {[%clk 0:01:31]} 29. Rb4 {[%clk 0:00:11]}  Nd7 {[%clk 0:01:25]} 30. Rcb1 {[%clk 0:00:08]}  Ne5 {[%clk 0:00:50]} 31. Rxb7 {[%clk 0:00:07]}  Nxc4 {[%clk 0:00:47]} 32. Rxc7 {[%clk 0:00:06]}  Rxc7 {[%clk 0:00:47]} 33. Bd4 {[%clk 0:00:05]}  f6 {[%clk 0:00:46]} 34. Rc1 {[%clk 0:00:04]}  Kd7 {[%clk 0:00:41]} 35. Rd1 {[%clk 0:00:04]}  Kc6 {[%clk 0:00:36]} 36. Ra1 {[%clk 0:00:02]}  e5 {[%clk 0:00:32]} 37. Bc3 {[%clk 0:00:03]}  Rb7 {[%clk 0:00:30]} 38. Rc1 {[%clk 0:00:02]}  Kd5 {[%clk 0:00:27]} 39. Be1 {[%clk 0:00:02]}  Rb2+ {[%clk 0:00:26]} 40. Kg3 {[%clk 0:00:03]}  Ra2 {[%clk 0:00:26]} 41. Rd1+ {[%clk 0:00:03]}  Ke6 {[%clk 0:00:26]} 42. Rc1 {[%clk 0:00:03]}  Nxa5 {[%clk 0:00:24]} 43. Rc8 {[%clk 0:00:02]}  Nb7 {[%clk 0:00:20]} 44. Rc7 {[%clk 0:00:02]}  Nd6 {[%clk 0:00:18]} 45. Rxg7 {[%clk 0:00:03]}  e4 {[%clk 0:00:18]} 46. f4 {[%clk 0:00:02]}  Ra3+ {[%clk 0:00:18]} 47. Kf2 {[%clk 0:00:03]}  e3+ {[%clk 0:00:17]} 48. Kf3 {[%clk 0:00:03]}  Nc4 {[%clk 0:00:17]} 49. f5+ {[%clk 0:00:04]}  Ke5 {[%clk 0:00:16]} 50. Bg3+ {[%clk 0:00:04]}  Kd4 {[%clk 0:00:16]} 51. Rd7+ {[%clk 0:00:04]}  Kc3 {[%clk 0:00:16]} 52. Bf4 {[%clk 0:00:03]}  Ra2 {[%clk 0:00:15]} 53. Bxe3 {[%clk 0:00:03]}  Nxe3 {[%clk 0:00:15]} 54. Kxe3 {[%clk 0:00:04]}  Rh2 {[%clk 0:00:15]} 55. Rd6 {[%clk 0:00:04]}  Rxh4 {[%clk 0:00:15]} 56. Kf4 {[%clk 0:00:04]}  h5 {[%clk 0:00:14]} 57. Rxf6 {[%clk 0:00:03]}  Rxg4+ {[%clk 0:00:15]} 58. Ke5 {[%clk 0:00:04]}  a5 {[%clk 0:00:15]} 59. Ra6 {[%clk 0:00:04]}  Kb4 {[%clk 0:00:14]} 60. f6 {[%clk 0:00:04]}  Rg1 {[%clk 0:00:13]} 61. Ke6 {[%clk 0:00:04]}  Re1+ {[%clk 0:00:13]} 62. Kd7 {[%clk 0:00:04]}  Rf1 {[%clk 0:00:13]} 63. Ke7 {[%clk 0:00:05]}  a4 {[%clk 0:00:13]} 64. f7 {[%clk 0:00:05]}  a3 {[%clk 0:00:11]} 65. Rb6+ {[%clk 0:00:03]}  Kc3 {[%clk 0:00:10]} 66. Ra6 {[%clk 0:00:03]}  Kb2 {[%clk 0:00:09]} 67. Rf6 {[%clk 0:00:02]}  Rxf6 {[%clk 0:00:07]} 68. Kxf6 {[%clk 0:00:03]}  a2 {[%clk 0:00:07]} 69. f8=Q {[%clk 0:00:04]}  a1=Q {[%clk 0:00:08]} 70. Kg5 {[%clk 0:00:03]}  Kb1 {[%clk 0:00:07]} 71. Qf1+ {[%clk 0:00:03]}  Ka2 {[%clk 0:00:07]} 72. Qe2+ {[%clk 0:00:03]}  Qb2 {[%clk 0:00:08]} 73. Qc4+ {[%clk 0:00:04]}  Qb3 {[%clk 0:00:08]} 74. Qe2+ {[%clk 0:00:04]}  Qb2 {[%clk 0:00:08]} 75. Qe6+ {[%clk 0:00:05]}  Qb3 {[%clk 0:00:08]} 76. Qa6+ {[%clk 0:00:05]}  Qa3 {[%clk 0:00:08]} 77. Qc4+ {[%clk 0:00:06]}  Qb3 {[%clk 0:00:08]} 78. Qf4 {[%clk 0:00:06]}  Qb5+ {[%clk 0:00:07]} 79. Kh4 {[%clk 0:00:07]}  Kb3 {[%clk 0:00:07]} 80. Qg3+ {[%clk 0:00:07]}  Kb4 {[%clk 0:00:06]} 81. Qf4+ {[%clk 0:00:07]}  Qc4 {[%clk 0:00:07]} 82. Qxc4+ {[%clk 0:00:08]}  Kxc4 {[%clk 0:00:07]} 83. Kxh5 {[%clk 0:00:09]} 1/2-1/2


[Site "https://www.chess.com"]

[Event "Titled Tuesday Blitz April 12 Early 2022"]
[White "Secheres, Adrian-Simion"]
[Black "Grandelius, Nils"]
[WhiteFideId "1217445"]
[BlackFideId "1710400"]
[WhiteElo "2277"]
[BlackElo "2617"]
[Result "0-1"]
[Round "10"]
[TimeControl "180+1"]
[Date "2022.04.12"]
[WhiteClock "0:00:13"]
[BlackClock "0:00:59"]

1. d4 {[%clk 0:03:00]}  Nf6 {[%clk 0:02:58]} 2. c4 {[%clk 0:03:01]}  c6 {[%clk 0:02:55]} 3. Nc3 {[%clk 0:03:01]}  d5 {[%clk 0:02:55]} 4. Nf3 {[%clk 0:03:01]}  dxc4 {[%clk 0:02:55]} 5. e4 {[%clk 0:03:01]}  b5 {[%clk 0:02:54]} 6. Be2 {[%clk 0:03:01]}  e6 {[%clk 0:02:53]} 7. O-O {[%clk 0:03:00]}  Be7 {[%clk 0:02:46]} 8. b3 {[%clk 0:02:58]}  b4 {[%clk 0:02:42]} 9. e5 {[%clk 0:02:57]}  Nd5 {[%clk 0:02:43]} 10. Ne4 {[%clk 0:02:56]}  c3 {[%clk 0:02:41]} 11. Bc4 {[%clk 0:02:01]}  a5 {[%clk 0:02:38]} 12. Nfg5 {[%clk 0:01:59]}  h6 {[%clk 0:02:32]} 13. Qh5 {[%clk 0:01:58]}  g6 {[%clk 0:02:32]} 14. Qh3 {[%clk 0:01:56]}  a4 {[%clk 0:02:02]} 15. Rb1 {[%clk 0:01:27]}  axb3 {[%clk 0:02:01]} 16. axb3 {[%clk 0:01:27]}  Nd7 {[%clk 0:01:38]} 17. Be3 {[%clk 0:01:23]}  N7b6 {[%clk 0:01:34]} 18. Ra1 {[%clk 0:01:18]}  Rxa1 {[%clk 0:01:33]} 19. Rxa1 {[%clk 0:01:19]}  Nxe3 {[%clk 0:01:33]} 20. fxe3 {[%clk 0:01:18]}  Bxg5 {[%clk 0:01:33]} 21. Nd6+ {[%clk 0:01:17]}  Kf8 {[%clk 0:01:27]} 22. Rf1 {[%clk 0:01:12]}  f5 {[%clk 0:01:26]} 23. Bd3 {[%clk 0:00:46]}  Nd5 {[%clk 0:01:18]} 24. e4 {[%clk 0:00:38]}  Nf4 {[%clk 0:01:19]} 25. Qg3 {[%clk 0:00:34]}  Qb6 {[%clk 0:01:13]} 26. Rxf4 {[%clk 0:00:20]}  Qxd4+ {[%clk 0:01:13]} 27. Rf2 {[%clk 0:00:20]}  Ba6 {[%clk 0:01:00]} 28. h4 {[%clk 0:00:19]}  Qxd3 {[%clk 0:01:01]} 29. Qxd3 {[%clk 0:00:18]}  Bxd3 {[%clk 0:01:00]} 30. hxg5 {[%clk 0:00:13]}  c2 {[%clk 0:00:59]} 0-1


[Site "https://www.chess.com"]

[Event "Titled Tuesday Blitz April 12 Early 2022"]
[White "Seo, Jung Min"]
[Black "Sztokbant, Bernardo Vainzoff"]
[WhiteFideId "1734687"]
[BlackFideId "2115956"]
[WhiteElo "2401"]
[BlackElo "2225"]
[Result "1-0"]
[Round "10"]
[TimeControl "180+1"]
[Date "2022.04.13"]
[WhiteClock "0:00:55"]
[BlackClock "0:00:01"]

1. d4 {[%clk 0:03:00]}  d5 {[%clk 0:03:00]} 2. c4 {[%clk 0:03:01]}  dxc4 {[%clk 0:02:59]} 3. e4 {[%clk 0:03:00]}  e5 {[%clk 0:02:59]} 4. Nf3 {[%clk 0:02:59]}  Nf6 {[%clk 0:02:58]} 5. Bxc4 {[%clk 0:02:50]}  Bb4+ {[%clk 0:02:57]} 6. Nc3 {[%clk 0:02:38]}  O-O {[%clk 0:02:56]} 7. O-O {[%clk 0:02:35]}  exd4 {[%clk 0:02:55]} 8. Nxd4 {[%clk 0:02:35]}  Bxc3 {[%clk 0:02:50]} 9. bxc3 {[%clk 0:02:35]}  Nxe4 {[%clk 0:02:51]} 10. Qf3 {[%clk 0:02:35]}  Nd6 {[%clk 0:02:49]} 11. Bb3 {[%clk 0:02:31]}  Nd7 {[%clk 0:02:48]} 12. Ba3 {[%clk 0:02:29]}  Qf6 {[%clk 0:02:45]} 13. Qg3 {[%clk 0:02:25]}  Ne5 {[%clk 0:02:04]} 14. Rfe1 {[%clk 0:02:24]}  Ng6 {[%clk 0:01:59]} 15. Rad1 {[%clk 0:02:24]}  Bd7 {[%clk 0:01:56]} 16. c4 {[%clk 0:02:23]}  b6 {[%clk 0:01:51]} 17. c5 {[%clk 0:02:19]}  bxc5 {[%clk 0:01:50]} 18. Bxc5 {[%clk 0:02:19]}  Rfe8 {[%clk 0:01:46]} 19. Nf3 {[%clk 0:02:11]}  Nf4 {[%clk 0:01:23]} 20. Qg5 {[%clk 0:01:54]}  Nh3+ {[%clk 0:01:06]} 21. gxh3 {[%clk 0:01:54]}  Qxf3 {[%clk 0:01:06]} 22. Qg3 {[%clk 0:01:52]}  Bc6 {[%clk 0:00:49]} 23. Qxf3 {[%clk 0:01:51]}  Bxf3 {[%clk 0:00:50]} 24. Rc1 {[%clk 0:01:45]}  Rxe1+ {[%clk 0:00:42]} 25. Rxe1 {[%clk 0:01:45]}  Re8 {[%clk 0:00:41]} 26. Rxe8+ {[%clk 0:01:45]}  Nxe8 {[%clk 0:00:42]} 27. Bxa7 {[%clk 0:01:45]}  Nd6 {[%clk 0:00:42]} 28. Bc5 {[%clk 0:01:40]}  Ne4 {[%clk 0:00:39]} 29. Be3 {[%clk 0:01:40]}  Kf8 {[%clk 0:00:32]} 30. a4 {[%clk 0:01:38]}  Ke7 {[%clk 0:00:27]} 31. a5 {[%clk 0:01:38]}  Nd6 {[%clk 0:00:18]} 32. a6 {[%clk 0:01:35]}  Kd7 {[%clk 0:00:15]} 33. Ba4+ {[%clk 0:01:30]}  Kc8 {[%clk 0:00:13]} 34. Bc2 {[%clk 0:01:26]}  g6 {[%clk 0:00:10]} 35. Kf1 {[%clk 0:01:24]}  Nc4 {[%clk 0:00:09]} 36. Bd4 {[%clk 0:01:19]}  Nb6 {[%clk 0:00:08]} 37. Ke1 {[%clk 0:01:17]}  Kb8 {[%clk 0:00:08]} 38. Bb3 {[%clk 0:01:17]}  f5 {[%clk 0:00:05]} 39. Bg8 {[%clk 0:01:14]}  h5 {[%clk 0:00:05]} 40. Bf7 {[%clk 0:01:13]}  Ka7 {[%clk 0:00:04]} 41. Bxg6 {[%clk 0:01:13]}  f4 {[%clk 0:00:04]} 42. Be5 {[%clk 0:01:13]}  Nd5 {[%clk 0:00:03]} 43. Bd3 {[%clk 0:01:11]}  Bg2 {[%clk 0:00:02]} 44. h4 {[%clk 0:01:11]}  f3 {[%clk 0:00:02]} 45. Kd2 {[%clk 0:01:10]}  Nb4 {[%clk 0:00:02]} 46. Bd4+ {[%clk 0:01:08]}  Kb8 {[%clk 0:00:03]} 47. Bc4 {[%clk 0:01:08]}  Nc6 {[%clk 0:00:03]} 48. Bc5 {[%clk 0:01:04]}  Ne5 {[%clk 0:00:02]} 49. Bb5 {[%clk 0:01:02]}  c6 {[%clk 0:00:02]} 50. Ba4 {[%clk 0:00:59]}  Nd7 {[%clk 0:00:02]} 51. Be3 {[%clk 0:00:58]}  Ne5 {[%clk 0:00:02]} 52. Kc3 {[%clk 0:00:57]}  Nd7 {[%clk 0:00:01]} 53. Bxc6 {[%clk 0:00:57]}  Ne5 {[%clk 0:00:01]} 54. a7+ {[%clk 0:00:57]}  Kc7 {[%clk 0:00:01]} 55. a8=Q {[%clk 0:00:57]}  Nxc6 {[%clk 0:00:02]} 56. Bf4+ {[%clk 0:00:57]}  Kb6 {[%clk 0:00:01]} 57. Qa3 {[%clk 0:00:55]}  Bh3 {[%clk 0:00:01]} 58. Be3+ {[%clk 0:00:55]}  Kc7 {[%clk 0:00:01]} 59. Qc5 {[%clk 0:00:55]} 1-0


[Site "https://www.chess.com"]

[Event "Titled Tuesday Blitz April 12 Early 2022"]
[White "Shohat, Yotam"]
[Black "Zaksaite, Salomeja"]
[WhiteFideId "2813955"]
[BlackFideId "12801496"]
[WhiteElo "2119"]
[BlackElo "1953"]
[Result "1-0"]
[Round "10"]
[TimeControl "180+1"]
[Date "2022.04.13"]
[WhiteClock "0:00:02"]
[BlackClock "0:00:02"]

1. e4 {[%clk 0:03:00]}  c5 {[%clk 0:02:53]} 2. Nf3 {[%clk 0:03:00]}  e6 {[%clk 0:02:53]} 3. g3 {[%clk 0:02:57]}  Nc6 {[%clk 0:02:52]} 4. Bg2 {[%clk 0:02:55]}  Nf6 {[%clk 0:02:52]} 5. e5 {[%clk 0:02:55]}  Ng4 {[%clk 0:02:44]} 6. Qe2 {[%clk 0:02:46]}  Qc7 {[%clk 0:02:42]} 7. d4 {[%clk 0:02:46]}  cxd4 {[%clk 0:02:37]} 8. Bf4 {[%clk 0:02:46]}  h5 {[%clk 0:02:33]} 9. O-O {[%clk 0:02:43]}  d6 {[%clk 0:02:28]} 10. exd6 {[%clk 0:02:36]}  Bxd6 {[%clk 0:02:28]} 11. Bxd6 {[%clk 0:02:36]}  Qxd6 {[%clk 0:02:28]} 12. Nbd2 {[%clk 0:02:37]}  O-O {[%clk 0:02:18]} 13. Rad1 {[%clk 0:02:36]}  d3 {[%clk 0:02:09]} 14. cxd3 {[%clk 0:02:28]}  Bd7 {[%clk 0:02:09]} 15. Nc4 {[%clk 0:02:25]}  Qe7 {[%clk 0:02:04]} 16. d4 {[%clk 0:02:24]}  Rac8 {[%clk 0:02:02]} 17. Rfe1 {[%clk 0:02:21]}  Nb4 {[%clk 0:01:55]} 18. h3 {[%clk 0:02:05]}  Bb5 {[%clk 0:01:35]} 19. b3 {[%clk 0:01:57]}  Nf6 {[%clk 0:01:32]} 20. Nfe5 {[%clk 0:01:53]}  Nbd5 {[%clk 0:01:24]} 21. Qd2 {[%clk 0:01:20]}  Be8 {[%clk 0:00:48]} 22. Qg5 {[%clk 0:01:13]}  b5 {[%clk 0:00:47]} 23. Ne3 {[%clk 0:00:57]}  Nxe3 {[%clk 0:00:46]} 24. fxe3 {[%clk 0:00:58]}  Rc2 {[%clk 0:00:38]} 25. Be4 {[%clk 0:00:47]}  Rxa2 {[%clk 0:00:30]} 26. Bb1 {[%clk 0:00:45]}  Rb2 {[%clk 0:00:27]} 27. Rf1 {[%clk 0:00:44]}  Nd5 {[%clk 0:00:08]} 28. Qxh5 {[%clk 0:00:40]}  f5 {[%clk 0:00:08]} 29. Qf3 {[%clk 0:00:28]}  Qg5 {[%clk 0:00:08]} 30. Rde1 {[%clk 0:00:17]}  Bh5 {[%clk 0:00:08]} 31. g4 {[%clk 0:00:14]}  Be8 {[%clk 0:00:05]} 32. Bd3 {[%clk 0:00:11]}  Rf6 {[%clk 0:00:05]} 33. Qg3 {[%clk 0:00:09]}  fxg4 {[%clk 0:00:05]} 34. hxg4 {[%clk 0:00:08]}  Rxf1+ {[%clk 0:00:05]} 35. Rxf1 {[%clk 0:00:09]}  Qxe3+ {[%clk 0:00:04]} 36. Qxe3 {[%clk 0:00:08]}  Nxe3 {[%clk 0:00:05]} 37. Rc1 {[%clk 0:00:08]}  Nd5 {[%clk 0:00:03]} 38. Rc8 {[%clk 0:00:08]}  Kf8 {[%clk 0:00:04]} 39. Bg6 {[%clk 0:00:08]}  Nf6 {[%clk 0:00:03]} 40. g5 {[%clk 0:00:07]}  Ke7 {[%clk 0:00:03]} 41. gxf6+ {[%clk 0:00:07]}  gxf6 {[%clk 0:00:04]} 42. Rxe8+ {[%clk 0:00:07]}  Kd6 {[%clk 0:00:04]} 43. Rd8+ {[%clk 0:00:08]}  Kc7 {[%clk 0:00:04]} 44. Rd7+ {[%clk 0:00:08]}  Kc8 {[%clk 0:00:04]} 45. Rxa7 {[%clk 0:00:08]}  fxe5 {[%clk 0:00:04]} 46. dxe5 {[%clk 0:00:09]}  Rxb3 {[%clk 0:00:04]} 47. Bf7 {[%clk 0:00:10]}  Re3 {[%clk 0:00:04]} 48. Bxe6+ {[%clk 0:00:10]}  Kb8 {[%clk 0:00:04]} 49. Rg7 {[%clk 0:00:05]}  Rxe5 {[%clk 0:00:05]} 50. Bb3 {[%clk 0:00:05]}  Rc5 {[%clk 0:00:05]} 51. Kf2 {[%clk 0:00:04]}  Rc7 {[%clk 0:00:06]} 52. Rg8+ {[%clk 0:00:04]}  Ka7 {[%clk 0:00:06]} 53. Rg5 {[%clk 0:00:04]}  Kb6 {[%clk 0:00:07]} 54. Rg6+ {[%clk 0:00:05]}  Rc6 {[%clk 0:00:07]} 55. Rg3 {[%clk 0:00:06]}  Kc5 {[%clk 0:00:06]} 56. Ke2 {[%clk 0:00:05]}  Kb4 {[%clk 0:00:07]} 57. Bd5 {[%clk 0:00:06]}  Rc3 {[%clk 0:00:06]} 58. Rg7 {[%clk 0:00:04]}  Kc5 {[%clk 0:00:06]} 59. Bf3 {[%clk 0:00:03]}  Kb4 {[%clk 0:00:06]} 60. Rb7 {[%clk 0:00:03]}  Rc5 {[%clk 0:00:06]} 61. Kd3 {[%clk 0:00:02]}  Rf5 {[%clk 0:00:05]} 62. Be4 {[%clk 0:00:02]}  Re5 {[%clk 0:00:05]} 63. Kd4 {[%clk 0:00:03]}  Rg5 {[%clk 0:00:04]} 64. Bd5 {[%clk 0:00:03]}  Rg4+ {[%clk 0:00:04]} 65. Ke5 {[%clk 0:00:03]}  Rg5+ {[%clk 0:00:04]} 66. Kd6 {[%clk 0:00:04]}  Rg3 {[%clk 0:00:04]} 67. Bc6 {[%clk 0:00:03]}  Rg6+ {[%clk 0:00:04]} 68. Kc7 {[%clk 0:00:02]}  Rg7+ {[%clk 0:00:04]} 69. Bd7 {[%clk 0:00:03]}  Kc4 {[%clk 0:00:02]} 70. Kc6 {[%clk 0:00:02]} 1-0


[Site "https://www.chess.com"]